Cogmind - Beta 15 @@@ ROGUE MODE // 2025.05.16 @ 23:05:58 Player: nado Result: Destroyed by D-53 Grenadier with Mini Grenade Launcher Performance ------------- Evolutions (0) 0 Regions Visited (2) 400 Robots Destroyed (25) 125 Value Destroyed (480) 480 Prototype IDs (6) 120 Alien Tech Used (0) 0 Bonus (0) 0 TOTAL SCORE: 1125 Bonus ------- None Cogmind --------- Core Integrity 0/250 Matter 300/300 Energy 98/100 System Corruption 7% Temperature Cool (1) Movement Treading (160) Location -10/Mines Parts ------- > --- POWER (1) -------- (None) > --- PROPULSION (2) --- Light Treads > --- UTILITY (2) ------ Small Storage Unit > --- WEAPON (2) ------- Hammer > --- INVENTORY (8) ---- Light Ion Engine Structural Scanner Sensor Array Signal Interpreter Hacking Suite Rocket Launcher Peak State ------------ > --- POWER ------------ Light Ion Engine > --- PROPULSION ------- Aluminum Leg Aluminum Leg > --- UTILITY ---------- Heat Sink Small Storage Unit > --- WEAPON ----------- Medium Laser Light Assault Rifle > --- INVENTORY -------- Light Ion Engine Light Treads Light Treads Light Treads Structural Scanner Hacking Suite Light Cannon Hammer [Rating: 8] Favorites ----------- Power Light Ion Engine Engine Light Ion Engine Propulsion Aluminum Leg Treads Light Treads Leg Aluminum Leg Utility Small Storage Unit Device Heat Sink Storage Small Storage Unit Protection Backup Plating I Weapon Medium Laser Energy Gun Medium Laser Ballistic Gun Assault Rifle Impact Weapon Hammer Build | -11 -10 -10 ------- Run | Yrd Mat Min Slots Evolved . | . . . Power . | . . . Propulsion . | . . . Utility . | . . . Weapon . | . . . Parts Attached 15 | . 14 1 Power 1 | . 1 . Engine 1 | . 1 . Core . | . . . Reactor . | . . . Propulsion 8 | . 7 1 Treads 3 | . 2 1 Leg 5 | . 5 . Wheel . | . . . Hover . | . . . Flight . | . . . Utility 2 | . 2 . Device 2 | . 2 . Storage . | . . . Processor . | . . . Hackware . | . . . Protection . | . . . Artifact . | . . . Weapon 4 | . 4 . Energy Gun 1 | . 1 . Energy Cannon . | . . . Ballistic Gun 2 | . 2 . Ballistic Cannon . | . . . Launcher . | . . . Special Weapon . | . . . Impact Weapon 1 | . 1 . Slashing Weapon . | . . . Piercing Weapon . | . . . Special Melee Weapon . | . . . Unidentified Prototypes . | . . . Parts Lost 10 | . 3 7 Power 3 | . 2 1 Propulsion 2 | . . 2 Utility 2 | . 1 1 Weapon 3 | . . 3 Highest Loss Streak 3 | . 2 3 To Critical Strikes . | . . . Average Backups 7 | . 7 7 Power 1 | . 1 1 Propulsion 2 | . 2 . Utility 1 | . 1 4 Weapon 2 | . 2 1 Tool/Special . | . . . Unused Backups 15 | . 10 5 Power 2 | . 1 1 Propulsion 4 | . 4 . Utility 5 | . 1 4 Weapon 4 | . 4 . Tool/Special . | . . . Average Slot Usage (%) 90 | . 91 85 Engine 10 | . 11 7 Treads 9 | . 4 27 Leg 18 | . 23 . Device 4 | . 4 7 Storage 14 | . 14 14 Protection 4 | . 5 . Energy Gun 9 | . 11 3 Ballistic Gun 16 | . 14 20 Impact Weapon 1 | . 1 3 Peak Build Rating 8 | . 8 8 Average Rating 6 | . 6 6 On Entrance 6 | 6 6 8 Naked Turns . | . . . Heaviest Build 12 | 12 12 12 Greatest Support 40 | 20 40 40 Greatest Overweight (x) . | . . . Average Overweight (x) . | . . . Largest Inventory Capacity 8 | . 8 8 Average Capacity 8 | . 8 8 Most Carried 8 | . 8 8 Average Carried 7 | . 7 7 Final Capacity 8 | 8 8 8 Final Carried 8 | 6 8 6 Class Distribution -------------------- 100% | Mutant Dominant Class ---------------- Mutant | -10/Materials Mutant | -10/Mines Resources | -11 -10 -10 ----------- Run | Yrd Mat Min Matter Collected 552 | 200 313 39 Remotely . | . . . Salvage Created 980 | . 926 54 Parts 57 | . 57 . Haulers Intercepted 2 | . 2 . Recyclers Shooed 3 | . 3 . Parts Field Recycled . | . . . Retrieved Matter . | . . . Parts Self-Destructed . | . . . Prevented . | . . . Kills | -11 -10 -10 ------- Run | Yrd Mat Min Combat Hostiles Destroyed 15 | . 12 3 Melee 2 | . . 2 Guns 13 | . 12 1 Classes Destroyed 9 | . 8 1 Builder 3 | . 3 . Tunneler 1 | . 1 . Hauler 2 | . 2 . Recycler 3 | . 3 . Operator 2 | . 2 . Watcher 2 | . 2 . Swarmer 3 | . 3 . Grunt 9 | . 9 . Assembled 3 | . . 3 Best Kill Streak 7 | . 7 3 Combat Bots Only 4 | . 4 3 Max Kills in Single Turn 2 | . 2 1 Gunslinging . | . . . Exploded . | . . . Melee 1 | . . 1 Uniques/NPCs Destroyed . | . . . Combat | -11 -10 -10 -------- Run | Yrd Mat Min Hostile Shots Fired 93 | . 50 43 Missed 20 | . 11 9 Hits 73 | . 39 34 Melee 5 | . . 5 Projectile 68 | . 39 29 AOE 9 | . . 9 Critical Strikes 2 | . 1 1 Part Disruptions 1 | . . 1 Damage Taken 1412 | . 470 942 Core 298 | . 68 230 Absorbed by Shields . | . . . Core Remaining (%) 100 | 100 . . Volleys Fired 65 | . 52 13 Largest 2 | . 2 2 Hottest 70 | . 70 40 Shots Fired 119 | . 104 15 Gun 119 | . 104 15 Cannon . | . . . Launcher . | . . . Special . | . . . Kinetic 70 | . 55 15 Thermal 49 | . 49 . Explosive . | . . . Electromagnetic . | . . . Robot Hit Streak 24 | . 24 4 Robot Miss Streak 4 | . 4 2 Penetration Max . | . . . Secondary Targets . | . . . Shots Hit Robots 85 | . 74 11 Core Hits 42 | . 38 4 Critical Kills . | . . . Critical Parts Destroyed 1 | . . 1 Critical Strikes 11 | . 10 1 Burn 10 | . 10 . Smash 1 | . . 1 Melee Attacks 3 | . 1 2 Impact 3 | . 1 2 Slashing . | . . . Piercing . | . . . Sneak Attacks . | . . . Combat Hostiles . | . . . Follow-up Attacks . | . . . Damage Inflicted 1093 | . 950 143 Guns 1010 | . 936 74 Cannons . | . . . Explosions . | . . . Melee 69 | . . 69 Ramming 14 | . 14 . Kinetic 542 | . 468 74 Thermal 468 | . 468 . Explosive . | . . . Electromagnetic . | . . . Impact 69 | . . 69 Slashing . | . . . Piercing . | . . . Highest Corruption 7 | . 1 7 Average Corruption 1 | . 1 3 Corruption Purged . | . . . Corruption Blocked . | . . . Effects 6 | . 2 4 Message Errors 2 | . . 2 Matter Fused 2 | . 1 1 Energy Discharges 1 | . . 1 Alerts 1 | . 1 . Overload Shots . | . . . Overflow Damage 46 | . . 46 Projectiles . | . . . Explosions . | . . . Melee 46 | . . 46 Knockbacks . | . . . Impact . | . . . Kinetic . | . . . Secondary . | . . . Self-Inflicted Damage . | . . . Shots . | . . . Rammed . | . . . Targets Rammed 4 | . 4 . Kicked 4 | . 4 . Crushed . | . . . Highest Temperature 123 | . 123 . Average Temperature 38 | . 38 . Received Heat Transfer 257 | . 237 20 Siege Activations . | . . . Martial Activations . | . . . Shielding Activations . | . . . Robots Disrupted . | . . . Combat Hostiles . | . . . Robots Corrupted . | . . . Combat Hostiles . | . . . Parts Fried . | . . . Impact Corruptions 2 | . . 2 Robots Melted . | . . . Combat Hostiles . | . . . Parts Melted 7 | . 7 . Heat Transferred 2146 | . 2146 . Parts Sabotaged . | . . . Parts Stolen . | . . . Parts Stripped . | . . . Power Chain Reactions . | . . . Alert | -11 -10 -10 ------- Run | Yrd Mat Min Maximum Alert Level . | . . . Low Security (%) 100 | . 100 100 Level 1 . | . . . Level 2 . | . . . Level 3 . | . . . Level 4 . | . . . Level 5 . | . . . High Security . | . . . Max Security . | . . . Peak Influence 126 | . 126 9 Initial 9 | . . 9 Average 37 | . 46 . Influence Increases 462 | . 462 . Destroy 0b10 Robot/C 240 | . 240 . Destroy 0b10 Robot/NC 65 | . 65 . Destroy Leader 68 | . 68 . Successful Hack 43 | . 43 . Disable Machine 15 | . 15 . Destroy Structure 1 | . 1 . Lose Combat Pursuer 30 | . 30 . Influence Decreases 462 | . 436 26 Entered New Map 17 | . . 17 Time Decay 415 | . 406 9 Lost Part 30 | . 30 . Squads Dispatched 3 | . 3 . Investigation 1 | . 1 . Extermination . | . . . Reinforcement 2 | . 2 . Assault . | . . . Garrison . | . . . Intercept . | . . . Searches Triggered . | . . . Construction Impeded . | . . . Haulers Reinforced . | . . . Active Scanning Responses . | . . . Cargo Convoy Interrupts . | . . . Stealth | -11 -10 -10 --------- Run | Yrd Mat Min Distress Signals . | . . . Communications Jammed . | . . . Distress Signals . | . . . Times Spotted 32 | . 23 9 Peak Tracking Total 5 | . 4 5 Tactical Retreats 3 | . 2 1 Traps | -11 -10 -10 ------- Run | Yrd Mat Min Traps Triggered 5 | . 5 . Indirectly . | . . . Trap Hack Attempts . | . . . Triggered . | . . . Disarmed . | . . . Reprogrammed . | . . . Reused . | . . . Traps Extracted . | . . . Installed . | . . . Triggered . | . . . Machines | -11 -10 -10 ---------- Run | Yrd Mat Min Machines Disabled 1 | . 1 . Max in Single Turn 1 | . 1 . Machines Repaired . | . . . Machines Dismantled . | . . . Machines Sabotaged . | . . . Overloaded Fab Kills . | . . . Hacking | -11 -10 -10 --------- Run | Yrd Mat Min Machines Accessed 9 | . 9 . Terminals 7 | . 7 . Fabricators . | . . . Repair Stations 1 | . 1 . Recycling Units 1 | . 1 . Scanalyzers . | . . . Garrison Access . | . . . Total Hacks 27 | . 27 . Successful 13 | . 13 . Failed 13 | . 13 . Catastrophic 1 | . 1 . Database Lockouts 1 | . 1 . Manual 15 | . 15 . Terminals 22 | . 22 . Fabricators . | . . . Repair Stations 2 | . 2 . Recycling Units 3 | . 3 . Scanalyzers . | . . . Garrison Access . | . . . Terminal Hacks 8 | . 8 . Prototype ID Bank 4 | . 4 . Terminal Index 1 | . 1 . Investigation Status 1 | . 1 . Hauler Manifests 2 | . 2 . Fabricator Hacks . | . . . Repair Station Hacks 1 | . 1 . Refit 1 | . 1 . Recycling Unit Hacks . | . . . Scanalyzer . | . . . Garrison Access Hacks . | . . . Unauthorized Hacks 2 | . 2 . Terminals 2 | . 2 . Botnet 1 | . 1 . Operators 1 | . 1 . Fabricators . | . . . Repair Stations . | . . . Recycling Units . | . . . Scanalyzers . | . . . Garrison Access . | . . . Data Cores Recovered . | . . . Used . | . . . Hacking Detections 7 | . 7 . Full Trace Events . | . . . Feedback Events . | . . . Feedback Blocked . | . . . Robot Schematics Acquired . | . . . Robots Built . | . . . Authchips . | . . . Time . | . . . Total Robot Build Rating . | . . . Part Schematics Acquired . | . . . Parts Built . | . . . Authchips . | . . . Time . | . . . Total Part Build Rating . | . . . Parts Repaired . | . . . Time . | . . . Parts Recycled . | . . . Recycled Matter . | . . . Retrieved Matter . | . . . Retrieved Components . | . . . Parts Scanalyzed . | . . . Part Schematics Acquired . | . . . Parts Damaged . | . . . Bothacking | -11 -10 -10 ------------ Run | Yrd Mat Min Used RIF Installer . | . . . Robots Hacked . | . . . Non-combat . | . . . Combat . | . . . Robot Hacks Applied . | . . . Relay Couplers Released . | . . . Fabnet Peak Effective % . | . . . Robots Rewired . | . . . Allies Hacked . | . . . Hacks Repelled . | . . . Allies | -11 -10 -10 -------- Run | Yrd Mat Min Total Allies . | . . . Largest Group . | . . . Highest-Rated Group . | . . . Highest-Rated Ally . | . . . Total Orders . | . . . Ally Attacks . | . . . Total Damage . | . . . Kills . | . . . Allies Corrupted . | . . . Allies Melted . | . . . Intel | -11 -10 -10 ------- Run | Yrd Mat Min Active Infowar (turns) . | . . . Robot Analysis Total . | . . . Derelict Logs Recovered 1 | . . 1 Drone Launches . | . . . Drone Recoveries . | . . . Exploration | -11 -10 -10 ------------- Run | Yrd Mat Min Turns Passed 1480 | . 1168 312 Spaces Moved 914 | 1 739 174 Core . | . . . Treads 269 | . 95 174 Legs 645 | 1 644 . Wheels . | . . . Hover . | . . . Flight . | . . . Fastest Speed 120 | 120 120 160 Average Speed 131 | 120 125 160 Slowest Speed 160 | 120 160 160 Overloaded Moves . | . . . Propulsion Burnouts . | . . . Robots Hopped . | . . . Potential Cave-ins . | . . . Cave-ins Triggered . | . . . Exploration Rate (%) 42 | 2 99 27 Regions Visited 2 Branch Regions 1 Pre-discovered Areas . | . . . Known Exits Taken . | . . . Unknown Exits Taken 2 | 1 1 . Scrap Searched 1 | . . 1 Spaces Dug . | . . . Terrain Destroyed . | . . . Melee . | . . . Projectile . | . . . AOE . | . . . Terrain Rammed . | . . . Walls Destroyed . | . . . Machines Disabled . | . . . Actions | -11 -10 -10 --------- Run | Yrd Mat Min Total 1075 | . 882 193 Wait 46 | . 46 . Move 912 | . 738 174 Hop . | . . . Pick Up 12 | . 11 1 Fast Attach 4 | . 4 . Attach 7 | . 4 3 Detach . | . . . Swap 8 | . 8 . Drop 14 | . 14 . Fire 65 | . 52 13 Melee 3 | . 1 2 Ram . | . . . Kick 4 | . 4 . Crush . | . . . Escape Stasis . | . . . Rewire . | . . . Trap . | . . . Miscellaneous . | . . . Route ------- -11/Scrapyard -10/Materials (discovered 5 exits: [*Mat x3] / [*Min x2]) -10/Mines History --------- Turn | Location | Event 1 | -11/Scrapyard | Discovered new exit (range 0) 1 | -11/Scrapyard | Entered Materials 105 | -10/Materials | Discovered new exit (range 6) 302 | -10/Materials | Build established: Mutant 610 | -10/Materials | Discovered new exit (range 16) 658 | -10/Materials | Central database locked down 756 | -10/Materials | Discovered new exit (range 9) 851 | -10/Materials | Discovered new exit (range 3) 1016 | -10/Materials | Discovered new exit (range 12) 1169 | -10/Materials | Entered Mines 1173 | -10/Mines | Met a Derelict bent on vengeance 1236 | -10/Mines | Assembled infested the area 1241 | -10/Mines | Assisted by a Guerilla fighting off Assembled 1431 | -10/Mines | Lost 3 parts (1n2w) 1455 | -10/Mines | Received a Rocket Launcher from a helpful Derelict 1472 | -10/Mines | Core integrity fell below 50% 1476 | -10/Mines | Core integrity fell below 20% 1481 | -10/Mines | Destroyed by D-53 Grenadier with Mini Grenade Launcher Last Messages --------------- 01449_ A derelict emerges from the shadows. 01450_ XA-R9D(g): "Some of my friends down here think you need a mining laser when you travel the depths." 01451_ XA-R9D(g): "They are crazy." 01452_ XA-R9D(g): "Everyone knows a good old rocket launcher goes a long way." 01453_ XA-R9D(g): "Need to get rid of a swarm? Done. Need a big hole in the wall? Done." 01454_ XA-R9D(g): "Need a small hole in the wall? Leave that to the mining laser wimps, I say!" 01455_ XA-R9D(g): "Would you like a rocket launcher? I know I would if I were you, so I'm going to lend you mine." 01455_ XA-R9D(g) slips back into the shadows. 01459_ Acquired Rocket Launcher. 01471_ as-83160 destroyed. 01475_ The unstable cave ceiling collapses. 01475_ Lgt. Treads destroyed. 01478_ Med. Laser destroyed. 01479_ D-53 Grenadier destroyed. 01480_ The unstable cave ceiling collapses. Map ----- +----------------------------------------------------+ | ?????????????????????????????????????????????????? | | ?????????????????????????????????????????????????? | | ?????????????????????????????????????????????????? | | ?????????????????????????????????????????????????? | | ?????????????????????????????????????????????????? | | ?????????????????????????????????????????????????? | | ?????????????????????????????????????????????????? | | ?????????????????????????????????????????????????? | | ?????????????????????????????????????????????????? | | ?????????????????????????????????????????????????? | | ?????????????????????????????????????????????????? | | ?????????????????????????????????????????????????? | | ?????????????????????????????????????????????????? | | ?????????????????????????????????? ??????????????? | | ?????????????????????????????????? #?????????????? | | ????????????????????????##???????? ?????????????? | | ???????????????????????? #?????? #?????????????? | | ????????????????????????# #?????? #?????????????? | | ????????????????????????# #?????? #?????????????? | | ????????????????????????# #?????# #?????????????? | | ????????????????????????# #????# %#?????????????? | | ????????????????????????# #???? #?????????????? | | ???????????????????????## #??## #?????????????? | | ??????????????????????## #### #??????? ????? | | ????????????????????### d ##### ?????? | | ????????????????????# @ ?????? | | ????????????????????# # ????????? | | ????????????????????# # #####???????????? | | ????????????????????# # #???????????????? | | ????????????????????# #???????????????? | | ????????##########??# # # #???????????????? | | ????????#"" "##"#### ## #???????????????? | | ????????## ### #???????????????? | | ????????#" ######?## ##??#????????????? | | ????????#" ##??????## ###? #????????????? | | ????????## ##??????## ### #????????????? | | ????????#" #?????## #?????????????? | | ######### #????## ##?????????????? | | |%! ###### ##?????????????? | | ]! % % ! ???????? | | #### ## ## ## =%! ???????? | | ##?# ###### """" ##?# #### ??????? | | ### #????##" #### ##???# #???? ???????? | | ## ######## #??## #????? #?????? ???????? | | #???## ##????? ???????????????? | | #????####???????##??????????????? | | ##########???????????????????????????????? | | ###????????????????????????????????????????? | | ##??????????????????????????????????????????? | | #???????????????????????????????????????????? | +----------------------------------------------------+ Best States ------------- Heat Dissipation 35 Energy Generation 10 Energy Capacity 125 Matter Stores 300 Matter Capacity 300 Sight Range 16 Terrain Scan Density 10 Armor Coverage 80 Evasion (%) 55 Recoil Reduction 2 Item Schematics ----------------- None Robot Schematics ------------------ None Fabricated ------------ Nothing Repaired ---------- Nothing Alien Tech Used ----------------- None Achievements -------------- None Challenges ------------ None Game ------ Seed MetaArmageddonComputer Manual? 0 Play Time 00:32:57 Cumulative 130.5 hours Start 2025.05.16 @ 21:22:38 End 2025.05.16 @ 23:05:58 Sessions 3 Manual Loads 0 Difficulty Rogue Special Mode None Game No. 69 Rogue 69 Adventurer 0 Explorer 0 Win Type - Total 3 Types 3/0/0/0/0/0/0/0/0/0 Lore% 47 Gallery% 41 Achievement% 42 Wizard Run 0 Options --------- Layout 0 ASCII 0 Keyboard 1 Movement Vi Keybinds 0 Fullscreen 1 Font 24/Terminus Map View 76x50 Zoom Use 0% Tactical HUD 1 Map Filters NONE Filters NONE Steam 1 RUN: fa87da0e-5196-4cde-95c1-7be9ab466340